bitfinex/quotes_BTCUSD_20241010
["timestamp","ask_amount","ask_price","bid_price","bid_amount"]
[1728579558085,1.87896653,60408.0,60407.0,0.001817]
[1728579560243,1.90491178,60408.0,60407.0,0.001817]
[1728579561538,1.90491178,60408.0,60406.0,0.16625719]
[1728579561539,0.446743,60407.0,60406.0,0.16625719]
[1728579561781,0.167554,60403.0,60402.0,0.000817]
[1728579562012,0.79598278,60403.0,60402.0,0.000817]
[1728579562715,1.49598278,60403.0,60402.0,0.000817]
[1728579563585,1.50998278,60403.0,60402.0,0.000817]
[1728579563885,1.67078939,60403.0,60402.0,0.000817]
[1728579564560,1.68478939,60403.0,60402.0,0.000817]
[1728579568752,0.98478939,60403.0,60402.0,0.000817]
[1728579569225,1.0107369,60403.0,60402.0,0.000817]
[1728579571214,1.0107369,60403.0,60380.0,0.0004]
[1728579571215,0.1698,60397.0,60380.0,0.0004]
[1728579571436,0.26080661,60402.0,60380.0,0.0004]
[1728579571437,0.435401,60386.0,60380.0,0.0004]
[1728579571744,0.344612,60382.0,60380.0,0.0004]
[1728579571950,0.344612,60382.0,60377.0,0.0160071]
[1728579571951,0.331218,60384.0,60377.0,0.0160071]
[1728579571952,0.1833,60379.0,60377.0,0.0160071]
[1728579572192,0.45401414,60378.0,60377.0,0.0160071]
[1728579572477,0.45401414,60378.0,60370.0,0.006]
[1728579572478,0.35403314,60371.0,60370.0,0.006]
[1728579572921,0.51487078,60371.0,60370.0,0.006]
[1728579573136,0.53013097,60371.0,60370.0,0.006]
[1728579573653,0.6453932,60371.0,60370.0,0.006]
[1728579573902,0.63013097,60371.0,60370.0,0.006]
[1728579574577,1.04173983,60371.0,60370.0,0.006]
[1728579574793,1.37108918,60371.0,60370.0,0.006]
[1728579575048,1.52789579,60371.0,60370.0,0.006]
[1728579575267,1.53589579,60371.0,60370.0,0.006]
[1728579575501,0.35406014,60361.0,60360.0,1.846834]
[1728579575798,0.0763,60360.0,60341.0,0.001017]
[1728579576024,0.0763,60360.0,60335.0,0.00307818]
[1728579576025,0.265738,60336.0,60335.0,0.00307818]
[1728579576232,0.64252028,60336.0,60335.0,0.00307818]
[1728579576448,0.64252028,60336.0,60331.0,0.00228429]
[1728579576449,0.265744,60334.0,60333.0,0.00957818]
[1728579576677,0.70826328,60336.0,60325.0,0.0005]
[1728579576678,0.005,60326.0,60325.0,0.0005]
[1728579576901,0.165766,60326.0,60325.0,0.0005]
[1728579577102,0.18839114,60334.0,60325.0,0.0005]
[1728579577328,0.43521737,60326.0,60325.0,0.0005]
[1728579577549,0.18839114,60326.0,60325.0,0.0005]
[1728579578481,0.49233264,60333.0,60325.0,0.0005]
[1728579578482,0.18839114,60331.0,60325.0,0.0005]
[1728579578687,0.24682623,60330.0,60325.0,0.0005]
[1728579578909,0.18839114,60336.0,60328.0,0.16576]
[1728579578910,0.24682623,60332.0,60328.0,0.16576]
[1728579579148,0.20239114,60336.0,60325.0,0.0005]
[1728579579149,0.18839114,60336.0,60329.0,0.00831483]
[1728579579444,0.24682623,60335.0,60332.0,0.165747]
[1728579579641,0.24682623,60335.0,60331.0,0.170752]
[1728579579852,0.24682623,60335.0,60333.0,0.003136]
[1728579580071,0.18839114,60334.0,60332.0,0.00314149]
[1728579580302,0.18839114,60334.0,60331.0,0.170751]
[1728579580516,0.18839114,60334.0,60331.0,0.165751]
[1728579581141,0.18839114,60334.0,60330.0,0.165753]
[1728579581357,0.165726,60341.0,60336.0,0.002]
[1728579581569,0.24682623,60338.0,60335.0,0.26504]
[1728579581783,0.18839114,60338.0,60337.0,0.00311402]
[1728579582013,0.18839114,60338.0,60337.0,0.165735]
[1728579582253,0.165716,60345.0,60337.0,0.165735]
[1728579582254,0.18839114,60342.0,60339.0,0.165729]
[1728579582689,0.001,60341.0,60340.0,0.00309754]
[1728579582905,0.18839114,60342.0,60340.0,0.00509754]
[1728579583127,0.18839114,60342.0,60338.0,0.167732]
[1728579583363,0.18839114,60342.0,60341.0,0.00309205]
[1728579583616,0.18839114,60342.0,60340.0,0.002]
[1728579584089,0.18839114,60342.0,60341.0,0.01247614]
[1728579585790,0.18839114,60342.0,60339.0,0.165729]
[1728579585990,0.18939114,60342.0,60341.0,0.01250377]
[1728579586634,0.165722,60342.0,60341.0,0.01250377]
[1728579586851,0.168722,60342.0,60341.0,0.01250377]
[1728579587383,0.003,60342.0,60341.0,0.01250377]
[1728579587805,0.168722,60342.0,60341.0,0.01250377]
[1728579588014,0.004,60342.0,60341.0,0.01250377]
[1728579588226,0.004,60342.0,60341.0,0.36661891]
[1728579588444,0.004,60342.0,60341.0,0.20089491]
[1728579588686,0.004,60342.0,60341.0,0.37361891]
[1728579589340,0.331374,60355.0,60347.0,0.002]
[1728579589589,0.41251823,60353.0,60350.0,0.18839114]
[1728579589811,0.165695,60352.0,60350.0,0.18839114]
[1728579590054,0.331362,60357.0,60351.0,0.00934052]
[1728579590289,0.331356,60359.0,60351.0,0.00934052]
[1728579590290,0.165686,60355.0,60351.0,0.00934052]
[1728579590516,0.331321,60365.0,60351.0,0.00934052]
[1728579590517,0.165686,60356.0,60351.0,0.17503752]
[1728579590742,0.331357,60358.0,60351.0,0.17503752]
[1728579590743,0.165686,60355.0,60354.0,0.18839114]
[1728579591205,0.165686,60355.0,60354.0,0.19771031]
[1728579591669,0.165686,60355.0,60354.0,0.00931917]
[1728579591905,0.331378,60354.0,60350.0,0.18839114]
[1728579592204,0.165693,60353.0,60350.0,0.18839114]
[1728579592627,0.165707,60348.0,60346.0,0.18839114]
[1728579592851,0.165707,60348.0,60343.0,0.167718]
[1728579592852,0.165707,60348.0,60343.0,0.1]
[1728579593069,0.16083764,60353.0,60343.0,0.1]
[1728579593284,0.165715,60345.0,60343.0,0.1]
[1728579593522,0.331407,60349.0,60343.0,0.1]
[1728579593744,0.331417,60347.0,60342.0,0.18839114]
[1728579593987,0.331424,60346.0,60342.0,0.18839114]
[1728579594229,0.331425,60346.0,60342.0,0.18839114]
[1728579594467,0.165717,60344.0,60339.0,0.165729]
[1728579594705,0.19911026,60344.0,60339.0,0.16573]
[1728579594963,0.331425,60346.0,60339.0,0.16573]
[1728579594964,0.165721,60343.0,60339.0,0.165729]
[1728579595194,0.24682623,60352.0,60340.0,0.00309754]
[1728579595195,0.001,60347.0,60340.0,0.00309754]
[1728579595424,0.24682623,60352.0,60340.0,0.16882354]
[1728579595425,0.165715,60345.0,60340.0,0.16882354]
[1728579595664,0.166718,60344.0,60340.0,0.165725]
[1728579595914,0.001,60344.0,60341.0,0.00309205]
[1728579596097,0.001,60344.0,60341.0,0.00836822]
[1728579596315,0.16572,60343.0,60338.0,0.35412214]
[1728579596571,0.16572,60343.0,60339.0,0.165729]
[1728579596811,0.331428,60345.0,60339.0,0.00310304]
[1728579597040,0.331428,60345.0,60339.0,0.16883204]
[1728579597041,0.165719,60343.0,60339.0,0.16883204]
[1728579597294,0.001,60344.0,60339.0,0.00310304]
[1728579597532,0.001,60344.0,60339.0,0.00302404]
[1728579597802,0.165716,60344.0,60340.0,0.165726]
[1728579598045,0.165716,60344.0,60338.0,0.51985614]
[1728579598046,0.165723,60342.0,60338.0,0.35412214]
[1728579598256,0.331418,60347.0,60338.0,0.18839114]
[1728579598488,0.001,60343.0,60339.0,0.165729]
[1728579598720,0.001,60343.0,60341.0,0.19039114]
[1728579598955,0.001,60343.0,60342.0,0.16903597]
[1728579599183,0.001,60343.0,60342.0,0.17210278]
[1728579599404,0.001,60345.0,60344.0,0.165714]
[1728579599612,0.001,60345.0,60344.0,0.35741904]
[1728579599859,0.165707,60348.0,60345.0,0.002]
[1728579600086,0.165704,60349.0,60346.0,0.002]
[1728579600350,0.165694,60353.0,60348.0,0.002]
[1728579600586,0.331367,60356.0,60350.0,0.19039114]
[1728579600587,0.24682623,60351.0,60350.0,0.19039114]
[1728579600834,0.24682623,60360.0,60350.0,0.28419114]
[1728579601052,0.24682623,60360.0,60355.0,0.18839114]
[1728579601266,0.24682623,60360.0,60356.0,0.002]
[1728579601478,0.24682623,60360.0,60355.0,0.35407514]
[1728579601479,0.01526156,60359.0,60355.0,0.35407514]
[1728579601719,0.01526156,60358.0,60355.0,0.19039114]
[1728579601943,0.01526156,60357.0,60355.0,0.35607614]
[1728579602171,0.16568,60358.0,60355.0,0.18839114]
[1728579602463,0.01526075,60357.0,60350.0,0.0938]
[1728579602683,0.01526075,60357.0,60354.0,0.165686]
[1728579602935,0.01526075,60357.0,60356.0,0.172683]
[1728579603145,0.004,60359.0,60358.0,0.195678]
[1728579603368,0.005636,60359.0,60358.0,0.64821935]
[1728579603581,0.005636,60359.0,60358.0,0.74350678]
[1728579603808,0.24682623,60384.0,60376.0,0.165628]
[1728579604029,0.94682623,60377.0,60376.0,0.54485678]
[1728579604259,0.24682623,60395.0,60386.0,0.002]
[1728579604260,0.24682623,60388.0,60386.0,0.002]
[1728579604474,0.24682623,60388.0,60387.0,0.35598914]
[1728579604687,0.41401723,60403.0,60390.0,0.007]
[1728579605038,0.001634,60403.0,60402.0,0.35894814]
[1728579605187,0.001636,60414.0,60403.0,0.0961]
[1728579605188,0.24682623,60407.0,60403.0,0.0961]
[1728579605404,0.001636,60414.0,60409.0,0.295538]
[1728579605650,0.001636,60420.0,60415.0,0.392621]
[1728579605860,0.24682623,60428.0,60427.0,0.007]
[1728579606082,0.24682623,60428.0,60427.0,0.1]
[1728579606320,0.24682623,60428.0,60422.0,0.1]
[1728579606539,0.001634,60440.0,60425.0,0.18839114]
[1728579606749,0.165465,60436.0,60429.0,0.002]
[1728579606965,0.001634,60440.0,60433.0,0.005]
[1728579607189,0.001634,60440.0,60425.0,0.18839114]
[1728579607190,0.330961,60430.0,60425.0,0.18839114]
[1728579607405,0.330961,60430.0,60421.0,0.005]
[1728579607406,0.165485,60429.0,60428.0,0.24682623]
[1728579607628,0.330924,60437.0,60428.0,0.24682623]
[1728579607841,0.165469,60434.0,60433.0,0.18839114]
[1728579608067,0.165469,60435.0,60433.0,0.18839114]
[1728579608281,0.001634,60440.0,60427.0,0.18839114]
[1728579608282,0.330943,60434.0,60427.0,0.18839114]
[1728579608498,0.001634,60440.0,60425.0,0.007]
[1728579608499,0.330969,60429.0,60425.0,0.007]
[1728579608720,0.165488,60427.0,60424.0,0.24682623]
[1728579609007,0.01517331,60439.0,60431.0,0.330952]
[1728579609219,0.01517331,60439.0,60433.0,0.171472]
[1728579609220,0.001,60434.0,60433.0,0.171472]
[1728579609452,0.001,60434.0,60433.0,0.45597948]
[1728579609676,0.001,60434.0,60433.0,0.006]
[1728579609893,0.34608931,60439.0,60426.0,0.105]
[1728579609894,0.330914,60439.0,60428.0,0.41231123]
[1728579610142,0.165476,60432.0,60428.0,0.24682623]
[1728579610416,0.330897,60442.0,60429.0,0.165483]
[1728579610417,0.165472,60434.0,60429.0,0.165483]
[1728579610666,0.330957,60431.0,60426.0,0.105]
[1728579610941,0.330971,60429.0,60413.0,0.33782623]
[1728579611151,0.165499,60423.0,60422.0,0.24682623]
[1728579611383,0.001,60429.0,60422.0,0.24682623]
[1728579611594,0.001634,60440.0,60427.0,0.28450748]
[1728579611810,0.001,60434.0,60429.0,0.003]
[1728579612018,0.330946,60433.0,60429.0,0.003]
[1728579612283,0.16548,60430.0,60429.0,0.003]
[1728579612482,0.330968,60429.0,60424.0,0.24682623]
[1728579612695,0.165493,60426.0,60424.0,0.24682623]
[1728579613121,0.003,60431.0,60421.0,0.24682623]
[1728579613340,0.165501,60423.0,60418.0,0.105]
[1728579613552,0.330972,60428.0,60418.0,0.1]
[1728579613766,0.006,60434.0,60413.0,0.24682623]
[1728579613767,0.16083764,60427.0,60413.0,0.24682623]
[1728579613985,0.165494,60425.0,60424.0,0.002]
[1728579614194,0.32633164,60425.0,60424.0,0.002]
[1728579614423,0.165515,60418.0,60414.0,0.165523]
[1728579614637,0.006634,60440.0,60413.0,0.53133371]
[1728579614852,0.330958,60431.0,60420.0,0.165508]
[1728579615089,0.165498,60424.0,60421.0,0.00330975]
[1728579615379,0.001636,60426.0,60421.0,0.24682623]
[1728579615635,0.001636,60426.0,60423.0,0.165497]
[1728579615866,0.001636,60426.0,60418.0,0.005]
[1728579615867,0.001636,60426.0,60414.0,0.28450748]
[1728579616123,0.001636,60426.0,60415.0,0.34682623]
[1728579616124,0.330999,60423.0,60415.0,0.34682623]
[1728579616348,0.165519,60416.0,60415.0,0.34682623]
[1728579616567,0.006,60425.0,60415.0,0.34682623]
[1728579616812,0.006,60425.0,60413.0,0.001]
[1728579616813,0.165524,60414.0,60413.0,0.001]
[1728579617061,0.16083764,60424.0,60416.0,0.24682623]
[1728579617259,0.33102,60420.0,60415.0,0.00331008]
[1728579617488,0.331026,60419.0,60414.0,0.001]
[1728579617717,0.331039,60416.0,60413.0,0.2559493]
[1728579617978,0.49656,60416.0,60413.0,0.2559493]
[1728579618177,0.331018,60420.0,60413.0,0.00912307]
[1728579618414,0.165513,60419.0,60415.0,0.16552]
[1728579618623,0.011,60420.0,60416.0,0.165517]
[1728579618846,0.006,60420.0,60417.0,0.331032]
[1728579619056,0.006,60420.0,60419.0,0.16551]
[1728579619695,0.006,60420.0,60417.0,0.165515]
[1728579620342,0.165512,60419.0,60416.0,0.28450748]
[1728579620577,0.006,60420.0,60417.0,0.165515]
[1728579621001,0.019,60420.0,60418.0,0.00376698]
[1728579621222,0.014,60420.0,60418.0,0.16927998]
[1728579621433,0.014,60420.0,60418.0,0.00376698]
[1728579621649,0.16951,60419.0,60418.0,0.00376698]
[1728579621865,0.16551,60419.0,60418.0,0.00376698]
[1728579622083,0.171509,60420.0,60418.0,0.00376698]
[1728579622318,0.176509,60420.0,60418.0,0.00376698]
[1728579622540,0.171509,60420.0,60418.0,0.00376698]
[1728579622760,0.171509,60420.0,60416.0,0.165517]
[1728579622993,0.004,60419.0,60418.0,0.165513]
[1728579623252,0.004,60419.0,60418.0,0.16856552]
[1728579623478,0.004,60419.0,60418.0,0.16860285]
[1728579623700,0.006,60420.0,60419.0,0.26551]
[1728579623907,0.165484,60429.0,60419.0,0.26551]
[1728579623908,0.15938248,60429.0,60425.0,0.165492]
[1728579624128,0.165487,60428.0,60425.0,0.165494]
[1728579624345,0.005,60444.0,60419.0,0.38450748]
[1728579624612,0.33095,60432.0,60426.0,0.00372315]
[1728579624803,0.330945,60433.0,60421.0,0.24682623]
[1728579625016,0.330945,60433.0,60427.0,0.00371768]
[1728579625017,0.165486,60428.0,60427.0,0.00371768]
[1728579625262,0.330964,60430.0,60426.0,0.16549]
[1728579625263,0.165482,60430.0,60426.0,0.16549]
[1728579625473,0.165482,60430.0,60427.0,0.00371768]
[1728579625474,0.330961,60430.0,60427.0,0.00371768]
[1728579625692,0.165486,60428.0,60427.0,0.00371768]
[1728579625952,0.165483,60429.0,60423.0,0.61550348]
[1728579626171,0.165484,60429.0,60427.0,0.00371768]
[1728579626619,0.330965,60430.0,60423.0,0.45000648]
[1728579626837,0.165486,60428.0,60425.0,0.165494]
[1728579627060,0.165484,60429.0,60425.0,0.165494]
[1728579627302,0.165484,60429.0,60423.0,0.61550348]
[1728579627303,0.16549,60427.0,60423.0,0.45000448]
[1728579627520,0.165486,60428.0,60425.0,0.165494]
[1728579627737,0.165491,60427.0,60423.0,0.45000448]
[1728579627944,0.334965,60430.0,60423.0,0.45000448]
[1728579627945,0.330968,60429.0,60424.0,0.165494]
[1728579628159,0.334965,60430.0,60425.0,0.165492]
[1728579628380,0.334965,60430.0,60423.0,0.61550448]
[1728579628381,0.330977,60427.0,60423.0,0.45000648]
[1728579628613,0.165493,60426.0,60423.0,0.28450748]
[1728579628820,0.165493,60426.0,60423.0,0.45100648]
[1728579629045,0.165493,60426.0,60424.0,0.00801052]
[1728579629468,0.012,60430.0,60425.0,0.165493]
[1728579629688,0.012,60430.0,60424.0,0.00801052]
[1728579629689,0.012,60430.0,60429.0,0.165483]
[1728579629923,0.008,60430.0,60429.0,0.16879214]
[1728579630130,0.008,60430.0,60429.0,0.17345801]
[1728579630349,0.165463,60437.0,60433.0,0.16547]
[1728579630350,0.165462,60437.0,60433.0,0.16547]
[1728579630570,0.165478,60431.0,60429.0,0.19757336]
[1728579630788,0.330929,60436.0,60425.0,0.18959835]
[1728579631083,0.330929,60436.0,60428.0,0.24682623]
[1728579631513,0.16083764,60437.0,60426.0,0.330978]
[1728579631729,0.001634,60440.0,60425.0,0.18959835]
[1728579631730,0.165485,60429.0,60425.0,0.18959835]
[1728579631948,0.165487,60428.0,60425.0,0.35509035]
[1728579632176,0.330963,60430.0,60425.0,0.35509035]
[1728579632403,0.165484,60429.0,60426.0,0.16549]
[1728579632621,0.001,60431.0,60426.0,0.16549]
[1728579632622,0.001,60431.0,60429.0,0.165482]
[1728579632833,0.001,60431.0,60428.0,0.003]
[1728579633057,0.001,60431.0,60425.0,0.18959835]
[1728579633279,0.001,60431.0,60426.0,0.33429145]
[1728579633492,0.001,60431.0,60427.0,0.16879741]
[1728579633493,0.001,60428.0,60427.0,0.16879741]
[1728579633737,0.001,60428.0,60427.0,0.165488]
[1728579634170,0.16083764,60435.0,60427.0,0.165488]
[1728579634171,0.330919,60438.0,60427.0,0.00273925]
[1728579634382,0.330912,60439.0,60436.0,0.18959835]
[1728579634595,0.165461,60438.0,60436.0,0.18959835]
[1728579635023,0.001634,60440.0,60436.0,0.18959835]
[1728579635024,0.001634,60440.0,60436.0,0.1929075]
[1728579635240,0.167087,60440.0,60439.0,0.18959835]
[1728579635446,0.167087,60440.0,60436.0,0.18959835]
[1728579635447,0.001634,60440.0,60436.0,0.18959835]
[1728579635657,0.002,60438.0,60437.0,0.165461]
[1728579636125,0.002,60438.0,60437.0,0.41559612]
[1728579636353,0.002,60438.0,60437.0,0.165461]
[1728579636561,0.002,60438.0,60437.0,0.16876962]
[1728579636768,0.004,60438.0,60437.0,0.16876962]
[1728579636994,0.001634,60440.0,60437.0,0.16876962]
[1728579637231,0.165437,60446.0,60444.0,0.18959835]
[1728579637492,0.330856,60450.0,60444.0,0.18959835]
[1728579637493,0.01531048,60445.0,60444.0,0.18959835]
[1728579637760,0.01531048,60445.0,60444.0,0.35834889]
[1728579638006,0.01531048,60445.0,60444.0,0.6446387]
[1728579638778,0.01531048,60445.0,60444.0,0.6516387]
[1728579638978,0.03061579,60445.0,60444.0,0.6556387]
[1728579639218,0.001634,60452.0,60444.0,0.6556387]
[1728579639219,0.001634,60452.0,60450.0,0.170425]
[1728579639455,0.01693065,60451.0,60450.0,0.45502335]
[1728579640190,0.001634,60451.0,60450.0,0.45502335]
[1728579640418,0.332411,60464.0,60457.0,0.165404]
[1728579640689,0.16539,60463.0,60460.0,0.35499635]
[1728579640926,0.165394,60462.0,60460.0,0.18959835]
[1728579641191,0.001636,60464.0,60460.0,0.35499635]
[1728579641915,0.001636,60464.0,60460.0,0.5445947]
[1728579642150,0.002634,60461.0,60460.0,0.5445947]
[1728579642413,0.001634,60468.0,60464.0,0.005]
[1728579642681,0.001634,60468.0,60467.0,0.45497735]
[1728579643208,0.001634,60468.0,60460.0,0.46403599]
[1728579643209,0.001634,60468.0,60460.0,0.008]
[1728579643438,0.165387,60464.0,60463.0,0.24682623]
[1728579643659,0.165398,60461.0,60455.0,0.1]
[1728579643896,0.001634,60468.0,60463.0,0.00766338]
[1728579643897,0.165387,60464.0,60463.0,0.00766338]
[1728579644123,0.165393,60462.0,60457.0,0.18959835]
[1728579644367,0.330771,60465.0,60460.0,0.43642458]
[1728579644579,0.001634,60468.0,60463.0,0.18959835]
[1728579644580,0.165383,60466.0,60463.0,0.18959835]
[1728579644840,0.165387,60464.0,60463.0,0.18959835]
[1728579645563,0.165379,60467.0,60464.0,0.1]
[1728579645783,0.330759,60467.0,60464.0,0.1]
[1728579646010,0.16538,60467.0,60464.0,0.1]
[1728579646253,0.001634,60468.0,60464.0,0.1]
[1728579646254,0.001634,60468.0,60467.0,0.265379]
[1728579646541,0.001634,60468.0,60467.0,0.61912196]
[1728579646755,0.001634,60468.0,60467.0,0.45497735]
[1728579647648,0.001634,60468.0,60467.0,0.265379]
[1728579648523,0.001634,60468.0,60467.0,0.267379]
[1728579648732,0.001634,60468.0,60467.0,0.55141851]
[1728579649393,0.001634,60468.0,60467.0,0.83995615]
[1728579649611,0.001634,60470.0,60469.0,0.170373]
[1728579649828,0.001634,60470.0,60469.0,0.63901466]
[1728579650038,0.001634,60470.0,60469.0,0.63070822]
[1728579650285,0.57748423,60486.0,60469.0,0.46533522]
[1728579650506,0.57748423,60486.0,60480.0,0.165343]
[1728579650720,0.337272,60490.0,60480.0,0.165343]
[1728579650721,0.16696,60487.0,60481.0,0.16824257]
[1728579650942,0.33067,60484.0,60476.0,0.28403951]
[1728579651154,0.33067,60484.0,60477.0,0.1]
[1728579651622,0.165347,60479.0,60477.0,0.1]
[1728579651851,0.165371,60470.0,60469.0,0.114]
[1728579652075,0.165371,60470.0,60469.0,0.011]
[1728579652751,0.18058524,60470.0,60469.0,0.01859427]
[1728579652967,0.01521424,60470.0,60469.0,0.176373]
[1728579653202,0.330727,60473.0,60469.0,0.176373]
[1728579653203,0.330727,60473.0,60469.0,0.00759427]
[1728579653437,0.165369,60471.0,60468.0,0.165376]
[1728579653659,0.165369,60471.0,60470.0,0.00758718]
[1728579653660,0.496105,60471.0,60470.0,0.00758718]
[1728579653889,0.165371,60470.0,60469.0,0.00759427]
[1728579654137,0.165376,60468.0,60467.0,0.1]
[1728579654762,0.165381,60467.0,60465.0,0.1]
[1728579654976,0.165377,60468.0,60465.0,0.265384]
[1728579655450,0.165382,60466.0,60464.0,0.100816]
[1728579655676,0.005,60476.0,60464.0,0.100816]
[1728579655900,0.005,60476.0,60464.0,0.266201]
[1728579655901,0.01521319,60475.0,60464.0,0.266201]
[1728579656121,0.165377,60468.0,60465.0,0.165383]
[1728579656346,0.165375,60469.0,60466.0,0.1]
[1728579656558,0.330739,60471.0,60466.0,0.1]
[1728579656811,0.01521388,60470.0,60467.0,0.165379]
[1728579657030,0.01521388,60470.0,60467.0,0.16868628]
[1728579657031,0.165371,60470.0,60467.0,0.16868628]
[1728579657241,0.165371,60470.0,60467.0,0.165379]
[1728579657450,0.33073,60473.0,60466.0,0.10330726]
[1728579657661,0.16537,60471.0,60467.0,0.165378]
[1728579657868,0.331737,60471.0,60466.0,0.1]
[1728579658084,0.165376,60469.0,60466.0,0.1]
[1728579658292,0.165376,60469.0,60467.0,0.001]
[1728579658505,0.330737,60471.0,60467.0,0.002]
[1728579658716,0.165376,60468.0,60467.0,0.002]
[1728579658937,0.165376,60468.0,60467.0,0.001]
[1728579659146,0.165374,60469.0,60467.0,0.00860845]
[1728579659612,0.330737,60471.0,60467.0,0.00760845]
[1728579659821,0.165376,60468.0,60467.0,0.00760845]
[1728579660037,0.335714,60476.0,60467.0,0.00860845]
[1728579660038,0.330733,60472.0,60467.0,0.00860845]
[1728579660261,0.165372,60470.0,60467.0,0.17398745]
[1728579660481,0.33073,60473.0,60467.0,0.00760845]
[1728579660725,0.01523415,60472.0,60467.0,0.00760845]
[1728579660947,0.165373,60470.0,60467.0,0.17298645]
[1728579661165,0.3469719,60471.0,60467.0,0.17298645]
[1728579661166,0.165374,60469.0,60467.0,0.00760845]
[1728579661614,0.330727,60473.0,60467.0,0.34036445]
[1728579661835,0.330727,60473.0,60467.0,0.17498645]
[1728579661836,0.165372,60470.0,60467.0,0.17498645]
[1728579662582,0.165376,60468.0,60467.0,0.00960845]
[1728579663021,0.330738,60471.0,60467.0,0.00960845]
[1728579663022,0.000816,60471.0,60467.0,0.00760845]
[1728579663243,0.166185,60471.0,60468.0,0.165375]
[1728579663493,0.165371,60470.0,60468.0,0.00760136]
[1728579663731,0.331554,60471.0,60468.0,0.00760136]
[1728579663732,0.000816,60471.0,60468.0,0.00760136]
[1728579663966,0.000816,60471.0,60469.0,0.165371]
[1728579664222,0.000816,60471.0,60469.0,0.00759427]
[1728579664443,0.000816,60471.0,60468.0,0.330748]
[1728579664668,0.000816,60471.0,60470.0,0.55699769]
[1728579664905,0.000816,60471.0,60470.0,0.54941051]
[1728579665154,0.000816,60471.0,60470.0,0.71783533]
[1728579665382,0.000816,60471.0,60470.0,0.79723533]
[1728579665863,0.000816,60471.0,60470.0,0.93683533]
[1728579666109,0.001634,60482.0,60481.0,0.165341]
[1728579666328,0.001634,60482.0,60481.0,0.54938051]
[1728579666552,0.001634,60482.0,60481.0,0.5568897]
[1728579667265,0.001634,60482.0,60481.0,0.27285019]
[1728579667491,0.166972,60482.0,60481.0,0.00750919]
[1728579667963,0.330694,60479.0,60467.0,0.24682623]
[1728579668226,0.330745,60470.0,60468.0,0.00760136]
[1728579668450,0.005,60477.0,60467.0,0.24682623]
[1728579668451,0.01529492,60469.0,60467.0,0.24682623]
[1728579668668,0.330733,60472.0,60467.0,0.24682623]
[1728579668669,0.01529492,60468.0,60467.0,0.24682623]
[1728579668887,0.01529492,60468.0,60467.0,0.165379]
[1728579669360,0.16538,60467.0,60464.0,0.166202]
[1728579669575,0.165384,60465.0,60464.0,0.000816]
[1728579669869,0.18067892,60465.0,60464.0,0.000816]
[1728579670085,0.01529492,60465.0,60464.0,0.000816]
[1728579670525,0.01529492,60465.0,60464.0,0.166203]
[1728579670748,0.01529492,60465.0,60464.0,0.273203]
[1728579671215,0.01529492,60465.0,60464.0,0.278203]
[1728579671431,0.01529492,60465.0,60464.0,0.266203]
[1728579671647,0.01529492,60465.0,60464.0,0.106816]
[1728579671865,0.01529492,60465.0,60464.0,0.172203]
[1728579672113,0.01529492,60465.0,60464.0,0.46490918]
[1728579672386,0.082234,60482.0,60471.0,0.1]
[1728579672600,0.24682623,60479.0,60476.0,0.52010277]
[1728579672817,0.001634,60482.0,60479.0,0.35474377]
[1728579673044,0.01530339,60481.0,60480.0,0.165343]
[1728579673504,0.01530204,60481.0,60480.0,0.496029]
[1728579673980,0.01530204,60481.0,60480.0,0.165343]
[1728579674198,0.01530204,60481.0,60480.0,0.28015856]
[1728579674420,0.001634,60482.0,60481.0,0.265341]
[1728579674634,0.001634,60482.0,60481.0,0.26864711]
[1728579674854,0.001634,60482.0,60481.0,0.27616034]
[1728579675736,0.001634,60482.0,60481.0,0.27285423]
[1728579676460,0.001634,60482.0,60481.0,0.27485423]
[1728579677119,0.001634,60482.0,60481.0,0.27785423]
[1728579677621,0.001634,60482.0,60481.0,0.01251323]
[1728579677839,0.001634,60482.0,60481.0,0.11251323]
[1728579678295,0.166972,60482.0,60481.0,0.01251323]
[1728579678741,0.166972,60482.0,60481.0,0.005]
[1728579678991,0.247072,60482.0,60481.0,0.01251323]
[1728579679179,0.247072,60482.0,60481.0,0.005]
[1728579679402,0.247072,60482.0,60481.0,0.01051323]
[1728579679631,0.248072,60482.0,60481.0,0.01051323]
[1728579679859,0.248072,60482.0,60481.0,0.00751323]
[1728579680089,0.248072,60482.0,60477.0,0.1]
[1728579680090,0.165349,60478.0,60477.0,0.1]
[1728579680536,0.330691,60480.0,60475.0,0.1]
[1728579680754,0.165355,60476.0,60474.0,0.1]
[1728579680968,0.165354,60477.0,60474.0,0.26536]
[1728579681191,0.165354,60477.0,60474.0,0.1]
[1728579681192,0.165357,60475.0,60474.0,0.1]
[1728579681677,0.330699,60478.0,60473.0,0.1]
[1728579681897,0.330689,60480.0,60471.0,0.1]
[1728579682140,0.3307,60478.0,60472.0,0.330731]
[1728579682373,0.087734,60482.0,60471.0,0.1]
[1728579682598,0.165358,60475.0,60471.0,0.265366]
[1728579682861,0.165358,60475.0,60464.0,0.000816]
[1728579682862,0.28384435,60473.0,60464.0,0.000816]
[1728579683098,0.170384,60465.0,60464.0,0.000816]
[1728579683813,0.27246657,60465.0,60464.0,0.000816]
[1728579684043,0.165384,60465.0,60464.0,0.000816]
[1728579684269,0.165384,60465.0,60464.0,0.001816]
[1728579684709,0.165384,60465.0,60464.0,0.000816]
[1728579684921,0.166384,60465.0,60464.0,0.001816]
[1728579686515,0.165384,60465.0,60464.0,0.000816]
[1728579687178,0.165384,60465.0,60464.0,0.00433114]
[1728579687416,0.33122164,60465.0,60464.0,0.000816]
[1728579688537,0.49195344,60465.0,60464.0,0.000816]
[1728579688757,0.33122164,60465.0,60464.0,0.000816]
[1728579690395,0.33922164,60465.0,60464.0,0.001816]
[1728579690607,0.34722164,60465.0,60464.0,0.002816]
[1728579690831,0.33922164,60465.0,60464.0,0.001816]